[Event "Kragero Resort International 2022"]
[Site "Kragero"]
[Date "2022.02.25"]
[Round "5.3"]
[White "Omtvedt, Per"]
[Black "Haugen, Lars Tormod"]
[Result "0-1"]
[ECO "B26"]
[WhiteElo "1829"]
[BlackElo "1710"]
[Annotator "NA"]
[PlyCount "68"]
[EventDate "2022.02.23"]
[EventType "swiss"]
[EventCountry "NOR"]
[SourceTitle "playchess.com"]
[Source "ChessBase"]
[SourceQuality "1"]
[TimeControl "5400+30"]

1. e4 {[%emt 0:00:04]} c5 {[%emt 0:00:46]} 2. Nc3 {[%emt 0:04:44]} g6 {[%emt 0:00:42]} 3. g3 {[%emt 0:00:11]} Bg7 {[%emt 0:00:22]} 4. Bg2 {[%emt 0:00:08]} Nc6 {[%emt 0:00:22]} 5. d3 {[%emt 0:00:07]} d6 {[%emt 0:00:17]} 6. Be3 {[%emt 0:00:09]} e5 {[%emt 0:01:09]} 7. Nge2 {[%emt 0:00:42]} Nge7 {[%emt 0:01:03]} 8. O-O {[%emt 0:00:13]} O-O {[%emt 0:00:24]} 9. Qd2 {[%emt 0:02:25]} Nd4 {[%emt 0:02:07]} 10. Nd1 {[%emt 0:02:45]} Be6 {[%emt 0:01:06]} 11. c3 {[%emt 0:01:03]} Nxe2+ {[%emt 0:00:12]} 12. Qxe2 {[%emt 0:00:05]} Qd7 {[%emt 0:00:56]} 13. f4 {[%emt 0:01:10]} exf4 {[%emt 0:06:40]} 14. Bxf4 {[%emt 0:02:21]} Rae8 {[%emt 0:05:04]} 15. Nf2 {[%emt 0:01:52]} Nc6 {[%emt 0:05:40]} 16. Qd2 {[%emt 0:04:59]} b5 {[%emt 0:12:58]} 17. Bh6 {[%emt 0:02:15]} d5 {[%emt 0:22:55]} 18. Bxg7 {[%emt 0:01:03]} Kxg7 {[%emt 0:00:01]} 19. Rfe1 $11 {[%emt 0:01:42]} d4 {[%emt 0:10:58]} 20. a4 {[%emt 0:07:19]} b4 {[%emt 0:03:42]} 21. c4 {[%emt 0:00:35]} Ne5 {[%emt 0:01:20]} 22. b3 {[%emt 0:00:32]} f6 {[%emt 0:03:31]} 23. Qe2 {[%emt 0:00:23]} h5 {[%emt 0:00:30]} 24. h4 {[%emt 0:01:03]} Qd6 {[%emt 0:02:50]} 25. Bh3 {[%emt 0:04:03]} Ng4 {[%emt 0:02:14]} 26. Kg2 {[%emt 0:01:53]} Ne3+ {[%emt 0:00:39]} 27. Kh2 {[%emt 0:00:18]} Rh8 {[%emt 0:04:34]} 28. Bxe6 {[%emt 0:03:08]} Rxe6 {[%emt 0:00:03]} 29. Nh3 {[%emt 0:01:49]} g5 {[%emt 0:06:23]} 30. hxg5 {[%emt 0:00:44]} fxg5 {[%emt 0:00:11]} 31. Rg1 {[%emt 0:01:38]} h4 {[%emt 0:02:25]} 32. Qf3 {[%emt 0:02:34]} hxg3+ {[%emt 0:00:57]} 33. Qxg3 {[%emt 0:01:20]} Rxh3+ {[%emt 0:00:23]} 34. Kxh3 {[%emt 0:00:39]} Rh6+ {[%emt 0:00:04]} 0-1

[Event "Kragero Resort International 2022"]
[Site "Kragero"]
[Date "2022.02.25"]
[Round "5.4"]
[White "Rozum, Ivan"]
[Black "Chatalbashev, Boris"]
[Result "0-1"]
[ECO "A19"]
[WhiteElo "2537"]
[BlackElo "2515"]
[Annotator "ChessBase"]
[PlyCount "78"]
[EventDate "2022.02.23"]
[EventType "swiss"]
[EventCountry "NOR"]
[SourceTitle "playchess.com"]
[Source "ChessBase"]
[SourceQuality "1"]
[TimeControl "5400+30"]

1. c4 {[%emt 0:00:38]} Nf6 {[%emt 0:01:11]} 2. Nc3 {[%emt 0:00:07]} e6 {[%emt 0:00:57]} 3. e4 {[%emt 0:00:40]} c5 {[%emt 0:00:16]} 4. e5 {[%emt 0:01:03]} Ng8 {[%emt 0:00:07]} 5. d4 {[%emt 0:00:06]} cxd4 {[%emt 0:03:51]} 6. Qxd4 {[%emt 0:00:09]} Nc6 {[%emt 0:00:16]} 7. Qf4 {[%emt 0:02:55]} Nge7 {[%emt 0:04:02]} 8. Nf3 {[%emt 0:00:59]} Ng6 {[%emt 0:00:10]} 9. Qe4 {[%emt 0:01:02]} Qa5 {[%emt 0:11:29]} 10. Bd2 {[%emt 0:03:34]} Ngxe5 {[%emt 0:06:22]} 11. Nxe5 {[%emt 0:03:42]} Qxe5 {[%emt 0:00:10]} 12. Qxe5 {[%emt 0:02:02]} Nxe5 {[%emt 0:00:03]} 13. Nb5 {[%emt 0:00:25]} Kd8 {[%emt 0:00:41]} 14. Bc3 {[%emt 0:06:28]} f6 {[%emt 0:01:31]} 15. f4 {[%emt 0:08:19]} Nc6 {[%emt 0:02:01]} 16. O-O-O {[%emt 0:01:03]} Bc5 {[%emt 0:02:43]} 17. g3 {[%emt 0:04:20]} a6 {[%emt 0:12:26]} 18. Nd6 {[%emt 0:03:13]} Kc7 {[%emt 0:00:10]} 19. Ne4 {[%emt 0:00:41]} b6 {[%emt 0:00:59]} 20. Bg2 {[%emt 0:05:42]} Bb7 {[%emt 0:01:03]} 21. a3 {[%emt 0:01:38]} Be7 {[%emt 0:09:08]} 22. Rd2 {[%emt 0:16:23]} Rhd8 {[%emt 0:09:09]} 23. Rhd1 {[%emt 0:00:40]} Na5 {[%emt 0:06:42]} 24. Bxa5 {[%emt 0:02:27]} bxa5 {[%emt 0:00:02]} 25. Nc3 {[%emt 0:02:15]} Bxg2 {[%emt 0:00:07]} 26. Rxg2 {[%emt 0:00:03]} f5 {[%emt 0:00:28]} 27. h4 {[%emt 0:03:51]} Rab8 {[%emt 0:03:41]} 28. Kc2 {[%emt 0:11:18]} Rb6 {[%emt 0:00:21]} 29. Re2 {[%emt 0:00:20]} Rdb8 {[%emt 0:04:03]} 30. Kc1 {[%emt 0:05:34]} Rc6 {[%emt 0:05:07]} 31. Nd5+ {[%emt 0:05:08]} Kd8 {[%emt 0:01:09]} 32. Ne3 {[%emt 0:00:58]} Rb3 {[%emt 0:00:56]} 33. Kb1 {[%emt 0:02:27]} Bc5 {[%emt 0:02:32]} 34. Nf1 {[%emt 0:00:27]} Rcb6 {[%emt 0:04:41]} 35. Ka2 {[%emt 0:00:44]} a4 {[%emt 0:00:07]} 36. Rg2 {[%emt 0:01:10]} h5 {[%emt 0:02:41]} 37. Rdd2 {[%emt 0:00:38]} Ke7 {[%emt 0:00:53]} 38. Rge2 {[%emt 0:01:29]} d6 {[%emt 0:01:06]} 39. Rd1 {[%emt 0:01:15]} Kf6 {[%emt 0:00:58]} 0-1

[Event "Kragero Resort International 2022"]
[Site "Kragero"]
[Date "2022.02.25"]
[Round "5.4"]
[White "Jonsson, Kristjan Dagur"]
[Black "Bronmo, Askild Skovgaard"]
[Result "1-0"]
[ECO "A75"]
[WhiteElo "1797"]
[BlackElo "1657"]
[Annotator "NA"]
[PlyCount "55"]
[EventDate "2022.02.23"]
[EventType "swiss"]
[EventCountry "NOR"]
[SourceTitle "playchess.com"]
[Source "ChessBase"]
[SourceQuality "1"]
[TimeControl "5400+30"]

1. d4 {[%emt 0:00:02]} Nf6 {[%emt 0:00:05]} 2. c4 {[%emt 0:00:10]} c5 {[%emt 0:00:05]} 3. d5 {[%emt 0:00:14]} e6 {[%emt 0:00:11]} 4. Nc3 {[%emt 0:00:34]} exd5 {[%emt 0:00:12]} 5. cxd5 {[%emt 0:00:20]} d6 {[%emt 0:00:10]} 6. Nf3 {[%emt 0:00:45]} g6 {[%emt 0:00:22]} 7. e4 {[%emt 0:03:08]} a6 {[%emt 0:00:48]} 8. a4 {[%emt 0:00:39]} Bg4 {[%emt 0:00:16]} 9. Be2 {[%emt 0:01:35]} Bg7 {[%emt 0:01:33]} 10. Nd2 {[%emt 0:03:49]} Bxe2 {[%emt 0:01:06]} 11. Qxe2 {[%emt 0:00:51]} O-O {[%emt 0:12:46]} 12. O-O {[%emt 0:11:08]} Nbd7 {[%emt 0:04:51]} 13. Nc4 {[%emt 0:04:37]} Nb6 {[%emt 0:02:30]} 14. Bg5 {[%emt 0:04:20]} Nxc4 {[%emt 0:07:48]} 15. Qxc4 {[%emt 0:01:02]} Qc7 {[%emt 0:11:12]} 16. Rfd1 {[%emt 0:13:20]} Rfe8 {[%emt 0:06:08]} 17. Rac1 {[%emt 0:07:53]} Qa5 {[%emt 0:07:02]} 18. Bf4 {[%emt 0:06:07]} Rad8 {[%emt 0:01:48]} 19. f3 {[%emt 0:02:42]} Nh5 {[%emt 0:03:39]} 20. Bg5 {[%emt 0:02:18]} Rb8 {[%emt 0:00:30]} 21. Bd2 {[%emt 0:07:24]} b5 {[%emt 0:02:55]} 22. axb5 {[%emt 0:08:26]} axb5 {[%emt 0:00:11]} 23. Qf1 {[%emt 0:02:55]} b4 {[%emt 0:02:01]} 24. Ra1 {[%emt 0:00:55]} Qb6 {[%emt 0:02:02]} 25. Ra6 {[%emt 0:01:05]} Qc7 {[%emt 0:00:37]} 26. Nb5 {[%emt 0:01:25]} Rxb5 {[%emt 0:00:10]} 27. Qxb5 {[%emt 0:00:37]} Bxb2 {[%emt 0:00:12]} 28. Qxe8+ {[%emt 0:00:33]} 1-0

[Event "Kragero Resort International 2022"]
[Site "Kragero"]
[Date "2022.02.25"]
[Round "5.5"]
[White "Skaar, Ben Samuel Groth"]
[Black "Thorisson, Benedikt"]
[Result "1/2-1/2"]
[ECO "D85"]
[WhiteElo "1641"]
[BlackElo "1790"]
[Annotator "NA"]
[PlyCount "116"]
[EventDate "2022.02.23"]
[EventType "swiss"]
[EventCountry "NOR"]
[SourceTitle "playchess.com"]
[Source "ChessBase"]
[SourceQuality "1"]
[TimeControl "5400+30"]

1. d4 {[%emt 0:00:03]} Nf6 {[%emt 0:00:08]} 2. Nf3 {[%emt 0:00:10]} g6 {[%emt 0:00:14]} 3. c4 {[%emt 0:01:20]} d5 {[%emt 0:00:26]} 4. Nc3 {[%emt 0:01:45]} Bg7 {[%emt 0:00:16]} 5. cxd5 {[%emt 0:03:10]} Nxd5 {[%emt 0:00:24]} 6. e4 {[%emt 0:00:05]} Nxc3 {[%emt 0:00:12]} 7. bxc3 {[%emt 0:00:04]} c5 {[%emt 0:00:15]} 8. Be3 {[%emt 0:07:49]} Nc6 {[%emt 0:01:03]} 9. Be2 {[%emt 0:06:14]} Bg4 {[%emt 0:00:39]} 10. e5 {[%emt 0:08:32]} O-O {[%emt 0:00:30]} 11. O-O {[%emt 0:01:11]} Qc7 {[%emt 0:02:34]} 12. Qb3 {[%emt 0:02:00]} Rad8 {[%emt 0:08:59]} 13. Rfd1 {[%emt 0:02:05]} Rd7 {[%emt 0:16:26]} 14. Rac1 {[%emt 0:07:55]} Qd8 {[%emt 0:03:17]} 15. Qa4 {[%emt 0:15:52]} Qa5 {[%emt 0:05:19]} 16. Qb3 {[%emt 0:05:24]} cxd4 {[%emt 0:09:14]} 17. cxd4 {[%emt 0:00:15]} Be6 {[%emt 0:00:19]} 18. Bc4 {[%emt 0:02:29]} Bxc4 {[%emt 0:01:57]} 19. Qxc4 {[%emt 0:00:15]} Qd5 {[%emt 0:00:13]} 20. Qxd5 {[%emt 0:07:36]} Rxd5 {[%emt 0:01:19]} 21. Rb1 {[%emt 0:00:27]} Rd7 {[%emt 0:01:21]} 22. Ng5 {[%emt 0:04:16]} e6 {[%emt 0:04:03]} 23. Ne4 {[%emt 0:01:15]} Rfd8 {[%emt 0:00:31]} 24. Nc5 {[%emt 0:02:15]} Rc7 {[%emt 0:02:41]} 25. Rxb7 {[%emt 0:04:59]} Bxe5 {[%emt 0:02:16]} 26. Rdb1 {[%emt 0:01:19]} Nxd4 {[%emt 0:04:23]} 27. Rxc7 {[%emt 0:06:33]} Bxc7 {[%emt 0:00:45]} 28. Nb7 {[%emt 0:01:28]} Rd5 {[%emt 0:02:09]} 29. Kf1 {[%emt 0:01:02]} Bb6 {[%emt 0:02:19]} 30. Rc1 {[%emt 0:00:11]} Kf8 {[%emt 0:01:19]} 31. a4 {[%emt 0:04:00]} e5 {[%emt 0:01:29]} 32. Bg5 {[%emt 0:03:45]} Kg7 {[%emt 0:04:26]} 33. Rc8 {[%emt 0:00:29]} Ne6 {[%emt 0:04:50]} 34. Be3 {[%emt 0:00:33]} Nd4 {[%emt 0:01:39]} 35. Bg5 {[%emt 0:00:26]} Nb3 {[%emt 0:02:39]} 36. Rc6 {[%emt 0:00:44]} Rd1+ {[%emt 0:02:20]} 37. Ke2 {[%emt 0:00:06]} Rd7 {[%emt 0:00:45]} 38. Bf6+ {[%emt 0:00:17]} Kh6 {[%emt 0:00:16]} 39. Rc3 {[%emt 0:00:39]} Nd4+ {[%emt 0:03:00]} 40. Kf1 {[%emt 0:00:23]} g5 {[%emt 0:00:55]} 41. Nc5 {[%emt 0:00:40]} Bxc5 {[%emt 0:02:52]} 42. Rxc5 {[%emt 0:00:06]} Ne6 {[%emt 0:00:29]} 43. Rc6 {[%emt 0:01:14]} Rd5 {[%emt 0:01:09]} 44. Ra6 {[%emt 0:00:37]} Kg6 {[%emt 0:01:21]} 45. Be7 {[%emt 0:00:06]} Kf5 {[%emt 0:01:14]} 46. f3 {[%emt 0:00:18]} Rd7 {[%emt 0:01:30]} 47. Bb4 {[%emt 0:00:45]} Rb7 {[%emt 0:01:56]} 48. Bd2 {[%emt 0:00:25]} Kf6 {[%emt 0:01:25]} 49. Be3 {[%emt 0:00:18]} e4 {[%emt 0:02:00]} 50. Rxa7 {[%emt 0:01:03]} Rb1+ {[%emt 0:00:23]} 51. Ke2 {[%emt 0:00:25]} Rb2+ {[%emt 0:00:13]} 52. Kf1 {[%emt 0:00:32]} Rb3 {[%emt 0:01:14]} 53. Kf2 {[%emt 0:00:34]} exf3 {[%emt 0:00:18]} 54. gxf3 {[%emt 0:00:27]} h5 {[%emt 0:00:38]} 55. Ra6 {[%emt 0:00:18]} Rb2+ {[%emt 0:00:43]} 56. Kg1 {[%emt 0:00:29]} Rb1+ {[%emt 0:00:11]} 57. Kf2 {[%emt 0:00:34]} Rb2+ {[%emt 0:00:08]} 58. Kg1 {[%emt 0:00:05]} Kg7 {[%emt 0:01:00]} 1/2-1/2

[Event "Kragero Resort International 2022"]
[Site "Kragero"]
[Date "2022.02.25"]
[Round "5.6"]
[White "Johannessen, Martin T."]
[Black "Hammari, Vinjar"]
[Result "0-1"]
[ECO "A65"]
[WhiteElo "1629"]
[BlackElo "1775"]
[Annotator "NA"]
[PlyCount "100"]
[EventDate "2022.02.23"]
[EventType "swiss"]
[EventCountry "NOR"]
[SourceTitle "playchess.com"]
[Source "ChessBase"]
[SourceQuality "1"]
[TimeControl "5400+30"]

1. d4 {[%emt 0:00:01]} Nf6 {[%emt 0:00:35]} 2. c4 {[%emt 0:00:06]} c5 {[%emt 0:00:06]} 3. d5 {[%emt 0:02:16]} e6 {[%emt 0:00:22]} 4. Bf4 {[%emt 0:03:22]} exd5 {[%emt 0:01:02]} 5. cxd5 {[%emt 0:00:13]} d6 {[%emt 0:00:12]} 6. Nc3 {[%emt 0:01:16]} g6 {[%emt 0:00:08]} 7. e4 {[%emt 0:01:49]} a6 {[%emt 0:00:58]} 8. Bd3 {[%emt 0:01:22]} b5 {[%emt 0:00:35]} 9. Nf3 {[%emt 0:00:54]} Bg7 {[%emt 0:02:11]} 10. O-O {[%emt 0:10:07]} O-O {[%emt 0:00:42]} 11. Re1 {[%emt 0:04:28]} Nh5 {[%emt 0:05:13]} 12. Bg5 {[%emt 0:05:40]} Qc7 {[%emt 0:00:34]} 13. Qd2 {[%emt 0:05:49]} Nd7 {[%emt 0:09:11]} 14. Bh6 {[%emt 0:03:28]} Nb6 {[%emt 0:01:17]} 15. Bxg7 {[%emt 0:06:31]} Kxg7 {[%emt 0:00:08]} 16. e5 {[%emt 0:09:04]} Bg4 {[%emt 0:01:26]} 17. Qg5 {[%emt 0:07:59]} Bxf3 {[%emt 0:00:47]} 18. gxf3 {[%emt 0:00:07]} dxe5 {[%emt 0:00:47]} 19. Qxe5+ {[%emt 0:04:26]} Qxe5 {[%emt 0:00:21]} 20. Rxe5 {[%emt 0:00:04]} Nf4 {[%emt 0:03:06]} 21. Rd1 {[%emt 0:07:33]} Nxd3 {[%emt 0:01:17]} 22. Rxd3 {[%emt 0:00:06]} Nc4 {[%emt 0:02:18]} 23. Re2 {[%emt 0:00:27]} Rfe8 {[%emt 0:00:48]} 24. Rxe8 {[%emt 0:04:50]} Rxe8 {[%emt 0:00:05]} 25. b3 {[%emt 0:00:23]} Nd6 {[%emt 0:01:11]} 26. Re3 {[%emt 0:01:07]} Rd8 {[%emt 0:00:37]} 27. Ne4 {[%emt 0:04:25]} Nf5 {[%emt 0:00:04]} 28. Rd3 {[%emt 0:01:19]} Nd4 {[%emt 0:02:03]} 29. Nxc5 {[%emt 0:03:59]} Rxd5 {[%emt 0:00:04]} 30. Kg2 {[%emt 0:02:00]} Rg5+ {[%emt 0:00:36]} 31. Kf1 {[%emt 0:00:35]} Nxf3 {[%emt 0:00:10]} 32. Nxa6 {[%emt 0:01:18]} Nxh2+ {[%emt 0:00:24]} 33. Ke2 {[%emt 0:00:14]} Ng4 {[%emt 0:00:55]} 34. Nb4 {[%emt 0:00:55]} Re5+ {[%emt 0:00:41]} 35. Kf3 {[%emt 0:00:12]} h5 {[%emt 0:00:17]} 36. Rd5 {[%emt 0:01:27]} Kf6 {[%emt 0:02:55]} 37. Rd6+ {[%emt 0:04:34]} Kg5 {[%emt 0:00:39]} 38. Rd5 {[%emt 0:00:44]} h4 {[%emt 0:02:46]} 39. a4 {[%emt 0:01:12]} bxa4 {[%emt 0:00:34]} 40. bxa4 {[%emt 0:00:06]} Rxd5 {[%emt 0:02:39]} 41. Nxd5 {[%emt 0:00:06]} Ne5+ {[%emt 0:00:04]} 42. Kg2 {[%emt 0:00:22]} Nc6 {[%emt 0:00:21]} 43. Kh3 {[%emt 0:02:05]} f5 {[%emt 0:00:41]} 44. f4+ {[%emt 0:00:27]} Kh5 {[%emt 0:01:23]} 45. Nf6+ {[%emt 0:00:05]} Kh6 {[%emt 0:00:05]} 46. Kxh4 {[%emt 0:00:04]} Kg7 {[%emt 0:00:09]} 47. Nd5 {[%emt 0:01:27]} Kf7 {[%emt 0:00:29]} 48. Kg5 {[%emt 0:01:16]} Kg7 {[%emt 0:00:14]} 49. Ne3 {[%emt 0:00:29]} Nd4 {[%emt 0:00:11]} 50. Nd5 {[%emt 0:01:45]} Nf3# {[%emt 0:00:05]} 0-1

[Event "Kragero Resort International 2022"]
[Site "Kragero"]
[Date "2022.02.25"]
[Round "5.7"]
[White "Bjarnason, Snorri Vikanes"]
[Black "Helland, Phillip"]
[Result "1-0"]
[ECO "B35"]
[WhiteElo "1606"]
[BlackElo "1760"]
[Annotator "NA"]
[PlyCount "87"]
[EventDate "2022.02.23"]
[EventType "swiss"]
[EventCountry "NOR"]
[SourceTitle "playchess.com"]
[Source "ChessBase"]
[SourceQuality "1"]
[TimeControl "5400+30"]

1. e4 {[%emt 0:00:03]} c5 {[%emt 0:00:08]} 2. Nf3 {[%emt 0:00:09]} g6 {[%emt 0:00:15]} 3. d4 {[%emt 0:00:33]} cxd4 {[%emt 0:00:13]} 4. Nxd4 {[%emt 0:00:05]} Nc6 {[%emt 0:00:21]} 5. Nc3 {[%emt 0:00:55]} Bg7 {[%emt 0:00:31]} 6. Be3 {[%emt 0:00:05]} Nf6 {[%emt 0:00:39]} 7. Bc4 {[%emt 0:02:22]} Qa5 {[%emt 0:01:52]} 8. O-O {[%emt 0:00:26]} O-O {[%emt 0:00:24]} 9. h3 {[%emt 0:05:06]} d6 {[%emt 0:05:14]} 10. Bb3 {[%emt 0:05:56]} Bd7 {[%emt 0:25:46]} 11. Nf3 {[%emt 0:16:38]} Qh5 {[%emt 0:00:00]} 12. Nd4 {[%emt 0:11:17]} Nxd4 {[%emt 0:00:00]} 13. Bxd4 {[%emt 0:00:00]} Qh4 {[%emt 0:05:21]} 14. Qd3 {[%emt 0:05:40]} Rfd8 {[%emt 0:14:49]} 15. Rfe1 {[%emt 0:09:03]} e6 {[%emt 0:07:32]} 16. Rad1 {[%emt 0:11:59]} Bc6 {[%emt 0:04:03]} 17. f3 {[%emt 0:04:51]} Nh5 {[%emt 0:03:18]} 18. Ne2 {[%emt 0:00:00]} Nf4 {[%emt 0:07:34]} 19. Nxf4 {[%emt 0:00:00]} Qxf4 {[%emt 0:00:25]} 20. Bxg7 {[%emt 0:00:00]} Kxg7 {[%emt 0:00:10]} 21. c4 {[%emt 0:00:00]} a5 {[%emt 0:03:28]} 22. a4 {[%emt 0:00:00]} Qe5 {[%emt 0:00:55]} 23. Qd4 {[%emt 0:00:00]} Qxd4+ {[%emt 0:00:19]} 24. Rxd4 {[%emt 0:00:00]} Kf6 {[%emt 0:00:11]} 25. Red1 {[%emt 0:01:53]} Ke7 {[%emt 0:02:31]} 26. Bc2 {[%emt 0:01:18]} f6 {[%emt 0:02:12]} 27. b3 {[%emt 0:00:57]} Rac8 {[%emt 0:00:45]} 28. Bb1 {[%emt 0:00:24]} Be8 {[%emt 0:00:15]} 29. Kf2 {[%emt 0:00:44]} Rc5 {[%emt 0:00:20]} 30. R1d2 {[%emt 0:01:58]} h5 {[%emt 0:01:18]} 31. Rd1 {[%emt 0:03:14]} h4 {[%emt 0:00:56]} 32. R1d2 {[%emt 0:00:42]} g5 {[%emt 0:02:05]} 33. Bc2 {[%emt 0:00:41]} Bf7 {[%emt 0:00:23]} 34. Bb1 {[%emt 0:00:46]} d5 {[%emt 0:01:10]} 35. exd5 {[%emt 0:00:11]} exd5 {[%emt 0:00:18]} 36. Be4 {[%emt 0:00:14]} Rd7 {[%emt 0:06:57]} 37. Ke3 {[%emt 0:00:20]} Be6 {[%emt 0:02:27]} 38. Bxd5 {[%emt 0:00:25]} Bxd5 {[%emt 0:01:03]} 39. Rxd5 {[%emt 0:00:08]} Rdxd5 {[%emt 0:00:21]} 40. Rxd5 {[%emt 0:00:10]} Rxd5 {[%emt 0:00:05]} 41. cxd5 {[%emt 0:00:13]} Kd6 {[%emt 0:00:05]} 42. Kd4 {[%emt 0:00:10]} f5 {[%emt 0:00:07]} 43. Kc4 {[%emt 0:01:35]} b6 {[%emt 0:00:11]} 44. Kd4 {[%emt 0:00:14]} 1-0

[Event "Kragero Resort International 2022"]
[Site "Kragero"]
[Date "2022.02.25"]
[Round "5.8"]
[White "Dahli, Vincent"]
[Black "Omarsson, Adam"]
[Result "0-1"]
[ECO "E94"]
[WhiteElo "1714"]
[BlackElo "1546"]
[Annotator "NA"]
[PlyCount "70"]
[EventDate "2022.02.23"]
[EventType "swiss"]
[EventCountry "NOR"]
[SourceTitle "playchess.com"]
[Source "ChessBase"]
[SourceQuality "1"]
[TimeControl "5400+30"]

1. d4 {[%emt 0:00:04]} g6 {[%emt 0:00:14]} 2. c4 {[%emt 0:00:08]} Nf6 {[%emt 0:00:11]} 3. Nc3 {[%emt 0:00:12]} Bg7 {[%emt 0:00:50]} 4. e4 {[%emt 0:00:48]} d6 {[%emt 0:00:53]} 5. Nf3 {[%emt 0:01:03]} O-O {[%emt 0:00:52]} 6. Be2 {[%emt 0:00:33]} Nbd7 {[%emt 0:00:54]} 7. O-O {[%emt 0:00:57]} e5 {[%emt 0:00:54]} 8. h3 {[%emt 0:01:16]} exd4 {[%emt 0:00:48]} 9. Nxd4 {[%emt 0:00:59]} Nc5 {[%emt 0:00:33]} 10. f3 {[%emt 0:02:44]} a5 {[%emt 0:03:21]} 11. Be3 {[%emt 0:03:37]} Nh5 {[%emt 0:01:57]} 12. Ndb5 {[%emt 0:02:14]} Bd7 {[%emt 0:05:47]} 13. Qd2 {[%emt 0:07:03]} Ng3 {[%emt 0:03:18]} 14. Rfd1 {[%emt 0:03:40]} Bxb5 {[%emt 0:00:47]} 15. Nxb5 {[%emt 0:00:37]} Rc8 {[%emt 0:01:08]} 16. Bf1 {[%emt 0:04:18]} Qh4 {[%emt 0:03:10]} 17. Rab1 {[%emt 0:09:52]} Nxf1 {[%emt 0:04:30]} 18. Kxf1 {[%emt 0:01:23]} f5 {[%emt 0:00:34]} 19. Bf2 {[%emt 0:17:42]} Qh5 {[%emt 0:02:18]} 20. Qd5+ {[%emt 0:09:08]} Kh8 {[%emt 0:00:36]} 21. Bxc5 {[%emt 0:01:33]} dxc5 {[%emt 0:01:36]} 22. Qxc5 {[%emt 0:02:10]} fxe4 {[%emt 0:00:40]} 23. Qxh5 {[%emt 0:00:11]} gxh5 {[%emt 0:00:09]} 24. Kf2 {[%emt 0:01:34]} exf3 {[%emt 0:00:28]} 25. gxf3 {[%emt 0:00:15]} Rf4 {[%emt 0:00:16]} 26. b3 {[%emt 0:01:21]} Rcf8 {[%emt 0:00:48]} 27. Rd3 {[%emt 0:00:37]} c6 {[%emt 0:01:12]} 28. Nd6 {[%emt 0:02:59]} Bd4+ {[%emt 0:01:07]} 29. Ke2 {[%emt 0:03:22]} b6 {[%emt 0:03:13]} 30. Ne4 {[%emt 0:06:07]} c5 {[%emt 0:00:21]} 31. Rh1 {[%emt 0:07:14]} Rg8 {[%emt 0:00:47]} 32. Rh2 {[%emt 0:00:43]} Be5 {[%emt 0:00:41]} 33. Rh1 {[%emt 0:01:54]} Rg2+ {[%emt 0:00:55]} 34. Ke3 {[%emt 0:00:26]} Rf7 {[%emt 0:00:55]} 35. Rd5 {[%emt 0:01:24]} Bd4+ {[%emt 0:00:15]} 0-1

[Event "Kragero Resort International 2022"]
[Site "Kragero"]
[Date "2022.02.25"]
[Round "5.9"]
[White "Ochsner, Bjorn Moller"]
[Black "Alinasab, Mobina"]
[Result "1-0"]
[ECO "B45"]
[WhiteElo "2496"]
[BlackElo "2325"]
[Annotator "RC"]
[PlyCount "139"]
[EventDate "2022.02.23"]
[EventType "swiss"]
[EventCountry "NOR"]
[SourceTitle "playchess.com"]
[Source "ChessBase"]
[SourceQuality "1"]
[TimeControl "5400+30"]

1. e4 {[%emt 0:01:35]} c5 {[%emt 0:00:47]} 2. Nf3 {[%emt 0:00:10]} e6 {[%emt 0:00:53]} 3. d4 {[%emt 0:01:48]} cxd4 {[%emt 0:00:09]} 4. Nxd4 {[%emt 0:00:06]} Nf6 {[%emt 0:00:09]} 5. Nc3 {[%emt 0:00:27]} Nc6 {[%emt 0:00:07]} 6. Ndb5 {[%emt 0:00:45]} Bb4 {[%emt 0:00:35]} 7. a3 {[%emt 0:00:51]} Bxc3+ {[%emt 0:00:42]} 8. Nxc3 {[%emt 0:00:02]} d5 {[%emt 0:00:11]} 9. exd5 {[%emt 0:00:18]} exd5 {[%emt 0:00:09]} 10. Bd3 {[%emt 0:00:20]} O-O {[%emt 0:00:11]} 11. O-O {[%emt 0:00:38]} d4 {[%emt 0:00:15]} 12. Ne2 {[%emt 0:00:29]} Bg4 {[%emt 0:00:16]} 13. f3 {[%emt 0:02:24]} Bh5 {[%emt 0:00:11]} 14. Nf4 {[%emt 0:00:08]} Bg6 {[%emt 0:00:07]} 15. Nxg6 {[%emt 0:00:08]} hxg6 {[%emt 0:00:13]} 16. f4 {[%emt 0:00:59]} Ne7 {[%emt 0:07:21]} 17. Qf3 {[%emt 0:04:51]} Qd7 {[%emt 0:06:47]} 18. Bd2 {[%emt 0:03:40]} Rfe8 {[%emt 0:03:15]} 19. Rae1 {[%emt 0:04:36]} Nf5 {[%emt 0:09:51]} 20. Re5 {[%emt 0:08:00]} a6 {[%emt 0:10:46]} 21. h3 {[%emt 0:09:59]} Rxe5 {[%emt 0:25:56]} 22. fxe5 {[%emt 0:00:14]} Nd5 {[%emt 0:00:08]} 23. g4 {[%emt 0:15:37]} Nfe3 {[%emt 0:05:29]} 24. Re1 {[%emt 0:00:44]} Rc8 {[%emt 0:03:55]} 25. Qe4 {[%emt 0:02:32]} Nc4 {[%emt 0:04:31]} 26. Bc1 {[%emt 0:02:16]} Ne7 {[%emt 0:04:28]} 27. e6 {[%emt 0:02:26]} Qxe6 {[%emt 0:01:28]} 28. Qxe6 {[%emt 0:00:11]} fxe6 {[%emt 0:00:05]} 29. Rxe6 {[%emt 0:00:40]} Kf7 {[%emt 0:00:28]} 30. Re4 {[%emt 0:00:48]} b5 {[%emt 0:00:48]} 31. b3 {[%emt 0:04:29]} Na5 {[%emt 0:03:46]} 32. Bg5 {[%emt 0:01:19]} Nec6 {[%emt 0:05:36]} 33. Kg2 {[%emt 0:02:10]} Nb7 {[%emt 0:00:44]} 34. Rf4+ {[%emt 0:00:58]} Ke6 {[%emt 0:00:10]} 35. Bxg6 {[%emt 0:03:30]} Nd6 {[%emt 0:00:06]} 36. Bd3 {[%emt 0:02:35]} Kd5 {[%emt 0:02:12]} 37. Bh4 {[%emt 0:02:30]} a5 {[%emt 0:05:02]} 38. Bg3 {[%emt 0:06:53]} Ne5 {[%emt 0:01:07]} 39. Bf2 {[%emt 0:04:05]} Nxd3 {[%emt 0:00:09]} 40. Rxd4+ {[%emt 0:03:11]} Ke5 {[%emt 0:00:08]} 41. Rxd3 {[%emt 0:00:18]} Rxc2 {[%emt 0:00:09]} 42. Kf3 {[%emt 0:00:22]} Ke6 {[%emt 0:00:41]} 43. Bg3 {[%emt 0:04:42]} Nf7 {[%emt 0:00:06]} 44. Re3+ {[%emt 0:00:24]} Kf6 {[%emt 0:01:34]} 45. Be1 {[%emt 0:02:44]} Ng5+ {[%emt 0:00:41]} 46. Kg3 {[%emt 0:00:23]} a4 {[%emt 0:00:14]} 47. bxa4 {[%emt 0:01:13]} bxa4 {[%emt 0:00:01]} 48. Bb4 {[%emt 0:00:20]} Ne6 {[%emt 0:00:36]} 49. h4 {[%emt 0:00:48]} Rc4 {[%emt 0:01:12]} 50. Rf3+ {[%emt 0:00:41]} Kg6 {[%emt 0:00:20]} 51. Rf5 {[%emt 0:00:58]} Nd4 {[%emt 0:00:42]} 52. h5+ {[%emt 0:02:02]} Kh6 {[%emt 0:00:26]} 53. Ra5 {[%emt 0:01:06]} Ne2+ {[%emt 0:00:32]} 54. Kh4 {[%emt 0:00:35]} Nd4 {[%emt 0:00:34]} 55. Rxa4 {[%emt 0:00:48]} Nf5+ {[%emt 0:00:29]} 56. Kh3 {[%emt 0:00:05]} Ne3 {[%emt 0:00:20]} 57. Ra6+ {[%emt 0:00:18]} Kh7 {[%emt 0:00:36]} 58. g5 {[%emt 0:01:12]} Nd5 {[%emt 0:00:33]} 59. Bd2 {[%emt 0:00:40]} Kg8 {[%emt 0:00:23]} 60. Ra8+ {[%emt 0:00:32]} Kf7 {[%emt 0:00:06]} 61. Ra7+ {[%emt 0:00:04]} Kg8 {[%emt 0:00:34]} 62. g6 {[%emt 0:00:26]} Rc8 {[%emt 0:00:54]} 63. Bg5 {[%emt 0:00:32]} Nc7 {[%emt 0:00:28]} 64. Bf4 {[%emt 0:01:06]} Nb5 {[%emt 0:00:36]} 65. Rb7 {[%emt 0:00:36]} Nd4 {[%emt 0:00:29]} 66. Be5 {[%emt 0:00:23]} Ne6 {[%emt 0:00:31]} 67. Kg4 {[%emt 0:00:15]} Rc6 {[%emt 0:00:28]} 68. Kf5 {[%emt 0:00:34]} Kf8 {[%emt 0:00:26]} 69. Rf7+ {[%emt 0:00:17]} Ke8 {[%emt 0:00:36]} 70. Bxg7 {[%emt 0:00:28]} 1-0